bitfinex/quotes_SOLUSD_20241215
["timestamp","ask_amount","ask_price","bid_price","bid_amount"]
[1734301178817,0.5405967,218.4,218.33,19.77721205]
[1734301179506,0.5405967,218.4,218.31,19.77721205]
[1734301181400,0.5405967,218.4,218.29,19.77721205]
[1734301182129,6.8684,218.39,218.26,19.77721205]
[1734301183597,6.8684,218.39,218.22,7.957]
[1734301183598,6.8684,218.39,218.27,19.77721205]
[1734301184601,6.8684,218.39,218.26,19.77721205]
[1734301185009,23.776884,218.38,218.25,19.77721205]
[1734301185624,6.869,218.37,218.25,19.77721205]
[1734301186009,23.776884,218.36,218.23,30.2461995]
[1734301186214,23.776884,218.36,218.24,19.77721205]
[1734301186410,23.776884,218.36,218.25,19.77721205]
[1734301188407,23.776884,218.36,218.23,10.46898745]
[1734301188606,6.8697,218.35,218.24,19.77721205]
[1734301189025,6.8697,218.35,218.25,19.77721205]
[1734301189244,30.645484,218.39,218.29,19.77721205]
[1734301189535,20.0,218.36,218.29,19.77721205]
[1734301190040,30.645484,218.39,218.3,19.77721205]
[1734301190244,6.8686,218.39,218.25,0.68707067]
[1734301190405,0.5405967,218.4,218.31,19.77721205]
[1734301190604,0.5405967,218.4,218.32,19.77721205]
[1734301192147,0.5405967,218.4,218.33,19.77721205]
[1734301194028,0.5405967,218.4,218.33,12.35087701]
[1734301194661,0.5405967,218.4,218.35,12.35087701]
[1734301200644,0.5405967,218.4,218.31,12.35087701]
[1734301201107,0.5405967,218.4,218.33,12.35087701]
[1734301203574,0.5405967,218.4,218.34,12.35087701]
[1734301206286,0.5405967,218.4,218.36,12.35087701]
[1734301212348,0.5405967,218.4,218.34,12.35087701]
[1734301212551,0.5405967,218.4,218.35,12.35087701]
[1734301213946,0.5405967,218.4,218.36,12.35087701]
[1734301216584,0.5405967,218.4,218.31,0.68674839]
[1734301216585,0.5405967,218.4,218.37,12.35087701]
[1734301216792,0.5405967,218.4,218.35,12.35087701]
[1734301217154,0.5405967,218.4,218.33,12.35087701]
[1734301221058,0.5405967,218.4,218.31,12.35087701]
[1734301224573,0.5405967,218.4,218.27,0.68699699]
[1734301224574,1.5611,218.38,218.27,12.35087701]
[1734301225889,1.5611,218.38,218.25,12.35087701]
[1734301225890,6.869,218.37,218.25,12.35087701]
[1734301226086,6.869,218.37,218.25,7.91045088]
[1734301226602,23.776884,218.36,218.23,10.46898745]
[1734301226893,23.776884,218.36,218.25,7.91045088]
[1734301227073,6.869,218.37,218.25,7.91045088]
[1734301227479,23.776884,218.36,218.23,10.46898745]
[1734301227680,23.776884,218.36,218.24,7.91045088]
[1734301227871,23.776884,218.36,218.25,7.91045088]
[1734301228077,23.776884,218.36,218.25,12.35998618]
[1734301229371,23.776884,218.36,218.23,10.46898745]
[1734301229372,23.776884,218.36,218.26,12.35998618]
[1734301229868,6.869,218.37,218.26,12.35998618]
[1734301230703,1.5611,218.38,218.29,12.35998618]
[1734301231770,1.5611,218.38,218.31,12.35998618]
[1734301232407,1.5611,218.38,218.29,12.35998618]
[1734301233402,1.5611,218.38,218.27,12.35998618]
[1734301233713,8.4299,218.38,218.27,12.35998618]
[1734301237338,8.4299,218.38,218.25,0.12549]
[1734301237557,8.4299,218.38,218.28,12.35998618]
[1734301240717,8.4299,218.38,218.26,12.35998618]
[1734301240897,23.776884,218.37,218.23,10.46898745]
[1734301241103,23.776884,218.37,218.23,22.82897363]
[1734301241331,23.776884,218.37,218.25,12.35998618]
[1734301244354,8.4299,218.38,218.27,12.35998618]
[1734301245849,8.4299,218.38,218.24,0.81255441]
[1734301245850,1.5611,218.38,218.3,12.35998618]
[1734301246035,1.5611,218.38,218.24,0.81255441]
[1734301246036,1.5611,218.38,218.32,12.35998618]
[1734301247059,1.5611,218.38,218.31,12.35998618]
[1734301249540,1.5611,218.38,218.3,12.35998618]
[1734301249942,1.5611,218.38,218.3,7.90655083]
[1734301250529,1.5611,218.38,218.25,0.68696347]
[1734301250849,1.5611,218.38,218.29,7.90655083]
[1734301251244,1.5611,218.38,218.27,0.6870039]
[1734301251646,1.5611,218.38,218.29,7.90655083]
[1734301254243,1.5611,218.38,218.31,7.90655083]
[1734301257274,6.869,218.37,218.23,16.16913173]
[1734301257559,6.869,218.37,218.23,24.07568256]
[1734301257854,6.869,218.37,218.24,8.03204083]
[1734301258856,6.869,218.37,218.24,7.90655083]
[1734301259641,20.0,218.34,218.24,7.90655083]
[1734301259951,6.869,218.37,218.24,7.90655083]
[1734301260258,6.869,218.37,218.25,7.90655083]
[1734301261244,6.869,218.37,218.26,7.90655083]
[1734301262252,1.5611,218.38,218.26,7.90655083]
[1734301262457,1.5611,218.38,218.27,7.90655083]
[1734301262458,21.5611,218.38,218.27,7.90655083]
[1734301263076,21.5611,218.38,218.26,7.90655083]
[1734301264144,21.5611,218.38,218.24,0.81256066]
[1734301264373,21.5611,218.38,218.26,7.90655083]
[1734301266168,21.5611,218.38,218.29,7.90655083]
[1734301266169,1.5611,218.38,218.29,7.90655083]
[1734301267173,1.5611,218.38,218.3,7.90655083]
[1734301267671,1.5611,218.38,218.29,7.90655083]
[1734301270150,1.5611,218.38,218.3,7.90655083]
[1734301272061,1.5611,218.38,218.28,0.68691827]
[1734301272062,0.5405967,218.4,218.37,7.90655083]
[1734301272261,0.5405967,218.4,218.39,7.90655083]
[1734301273871,0.5405967,218.4,218.39,14.74493083]
[1734301274085,0.5405967,218.4,218.39,47.05784257]
[1734301274376,0.5405967,218.4,218.39,15.43163925]
[1734301274547,0.5405967,218.4,218.39,7.52508842]
[1734301274871,0.5405967,218.4,218.38,7.90655083]
[1734301275371,0.5405967,218.4,218.39,7.90655083]
[1734301277276,0.5405967,218.4,218.32,24.97070604]
[1734301277277,0.5405967,218.4,218.36,7.90655083]
[1734301277478,0.5405967,218.4,218.32,7.55263954]
[1734301277479,0.5405967,218.4,218.37,7.90655083]
[1734301281456,0.5405967,218.4,218.39,7.90655083]
[1734301281972,0.5405967,218.4,218.38,7.90655083]
[1734301282578,0.5405967,218.4,218.39,7.90655083]
[1734301285579,0.5405967,218.4,218.39,8.59315351]
[1734301285989,0.5405967,218.4,218.39,0.68660268]
[1734301286168,0.5405967,218.4,218.39,8.59315351]
[1734301286775,0.5405967,218.4,218.39,8.71864351]
[1734301286973,0.5405967,218.4,218.39,8.84413351]
[1734301289395,0.5405967,218.4,218.39,64.24722083]
[1734301289558,0.5405967,218.4,218.39,70.29096037]
[1734301291570,0.5405967,218.4,218.39,6.73034222]
[1734301291768,0.5405967,218.4,218.39,7.90655083]
[1734301297385,0.5405967,218.4,218.36,0.68663814]
[1734301297588,0.5405967,218.4,218.39,7.90655083]
[1734301299579,0.5405967,218.4,218.36,0.68663814]
[1734301299780,0.5405967,218.4,218.39,7.90655083]
[1734301300365,0.5405967,218.4,218.36,0.68663814]
[1734301300569,0.5405967,218.4,218.39,7.90655083]
[1734301302898,0.5405967,218.4,218.36,3.37339426]
[1734301302899,0.5405967,218.4,218.36,0.68663814]
[1734301303103,0.5405967,218.4,218.39,7.90655083]
[1734301304968,0.5405967,218.4,218.39,8.15753083]
[1734301305167,0.5405967,218.4,218.39,8.84401367]
[1734301306079,0.5405967,218.4,218.39,8.15753083]
[1734301306488,0.5405967,218.4,218.39,8.84401888]
[1734301309491,8.0143,218.56,218.44,0.25098]
[1734301309782,8.0143,218.56,218.51,7.90655083]
[1734301310195,8.0143,218.56,218.46,0.25098]
[1734301310418,1.5144,218.56,218.53,7.90655083]
[1734301311623,7.1471967,218.61,218.55,7.90655083]
[1734301311624,0.5405967,218.61,218.55,7.90655083]
[1734301311830,0.5405967,218.61,218.56,5.90655083]
[1734301312693,0.5405967,218.61,218.55,7.90655083]
[1734301313203,0.5405967,218.61,218.5,0.12549]
[1734301313393,0.5405967,218.61,218.5,2.68549]
[1734301313598,0.5405967,218.61,218.55,7.90655083]
[1734301316006,0.5405967,218.61,218.54,7.90655083]
[1734301316892,0.5405967,218.61,218.53,7.90655083]
[1734301318227,0.5405967,218.61,218.54,7.90655083]
[1734301318418,0.5405967,218.61,218.53,7.90655083]
[1734301319422,0.5405967,218.61,218.55,7.90655083]
[1734301319940,0.5405967,218.61,218.51,0.12549]
[1734301320092,0.5405967,218.61,218.55,7.90655083]
[1734301320291,0.5405967,218.61,218.52,0.68617022]
[1734301320497,0.5405967,218.61,218.54,7.90655083]
[1734301320939,0.5405967,218.61,218.54,7.40655083]
[1734301321524,0.5405967,218.61,218.55,7.90655083]
[1734301321897,0.5405967,218.61,218.57,7.90655083]
[1734301322092,0.5405967,218.61,218.59,7.90655083]
[1734301322324,0.5405967,218.61,218.6,7.90655083]
[1734301322926,0.5405967,218.61,218.6,8.59252266]
[1734301323426,0.5405967,218.61,218.6,8.84350266]
[1734301324120,0.5405967,218.61,218.6,32.62038666]
[1734301324299,0.5405967,218.61,218.6,37.62038666]
[1734301324699,0.5405967,218.61,218.6,40.18038666]
[1734301324923,0.5405967,218.61,218.6,22.81098]
[1734301325132,0.5405967,218.61,218.6,10.71753083]
[1734301325504,0.5405967,218.61,218.6,11.40344109]
[1734301326223,0.5405967,218.61,218.54,7.27430421]
[1734301326412,0.5405967,218.61,218.57,7.90655083]
[1734301326722,0.5405967,218.61,218.54,7.27430421]
[1734301326911,0.5405967,218.61,218.58,7.90655083]
[1734301327420,0.5405967,218.61,218.6,7.90655083]
[1734301329224,0.5405967,218.61,218.6,10.71753083]
[1734301333036,0.5405967,218.61,218.6,11.4034296]
[1734301335437,0.5405967,218.61,218.6,35.1803136]
[1734301336616,0.5405967,218.61,218.6,11.4034296]
[1734301338428,0.5405967,218.61,218.6,3.49687877]
[1734301338734,0.5405967,218.61,218.6,11.4034296]
[1734301339412,0.5405967,218.61,218.6,17.28232388]
[1734301344414,0.5405967,218.61,218.6,9.37577305]
[1734301344610,0.5405967,218.61,218.6,17.28232388]
[1734301345715,0.5405967,218.61,218.6,9.25028305]
[1734301345923,0.5405967,218.61,218.6,11.2779396]
[1734301346350,0.5405967,218.61,218.6,2.56]
[1734301346547,0.5405967,218.61,218.6,10.46655083]
[1734301349962,0.5405967,218.61,218.6,2.56]
[1734301350130,0.5405967,218.61,218.6,10.46655083]
[1734301357746,0.5405967,218.61,218.6,7.90655083]
[1734301359033,0.5405967,218.61,218.6,8.55655083]
[1734301360870,0.5405967,218.61,218.6,7.90655083]
[1734301363977,0.5405967,218.61,218.6,8.55655083]
[1734301366687,0.5405967,218.61,218.6,7.90655083]
[1734301370458,0.5405967,218.61,218.6,23.87655083]
[1734301372264,0.5405967,218.61,218.6,24.00204083]
[1734301373475,0.5405967,218.61,218.6,16.09549]
[1734301373986,0.5405967,218.61,218.6,24.00204083]
[1734301376357,0.5405967,218.61,218.6,16.09549]
[1734301376556,0.5405967,218.61,218.6,24.12753083]
[1734301376993,0.5405967,218.61,218.6,15.97]
[1734301377297,0.5405967,218.61,218.6,23.87655083]
[1734301377660,0.5405967,218.61,218.6,15.97]
[1734301377877,0.5405967,218.61,218.6,23.87655083]
[1734301378962,0.5405967,218.61,218.6,15.97]
[1734301379287,0.5405967,218.61,218.6,23.87655083]
[1734301380167,0.5405967,218.61,218.6,15.97]
[1734301380370,0.5405967,218.61,218.6,23.87655083]
[1734301380980,0.5405967,218.61,218.6,7.90655083]
[1734301381971,0.5405967,218.61,218.56,0.68587643]
[1734301382171,0.5405967,218.61,218.55,7.90655083]
[1734301383777,0.5405967,218.61,218.54,0.68606442]
[1734301383977,0.5405967,218.61,218.55,0.76]
[1734301385394,0.5405967,218.61,218.51,7.90655083]
[1734301385887,0.5405967,218.61,218.5,0.68613636]
[1734301386090,0.5405967,218.61,218.51,7.90655083]
[1734301387306,0.5405967,218.61,218.43,11.93528209]
[1734301387307,23.776884,218.6,218.46,0.6863269]
[1734301387510,23.776884,218.58,218.48,7.90655083]
[1734301387719,7.686,218.59,218.48,7.90655083]
[1734301387919,7.686,218.59,218.51,7.90655083]
[1734301389005,7.686,218.59,218.44,0.68632132]
[1734301389006,6.8624,218.58,218.44,0.68632132]
[1734301389209,6.8624,218.58,218.48,7.90655083]
[1734301390099,6.8624,218.58,218.49,7.90655083]
[1734301391118,6.8624,218.58,218.48,7.90655083]
[1734301391801,23.776884,218.57,218.39,0.6864378]
[1734301392006,23.776884,218.57,218.43,7.90655083]
[1734301392202,23.776884,218.57,218.46,7.90655083]
[1734301392582,23.776884,218.55,218.41,0.68657427]
[1734301392782,1.5331,218.56,218.46,7.90655083]
[1734301393213,1.5331,218.56,218.41,0.68657427]
[1734301393400,1.5331,218.56,218.45,7.90655083]
[1734301393711,1.5331,218.56,218.46,8.59305485]
[1734301393914,1.5331,218.56,218.46,7.90655083]
[1734301394515,1.5331,218.56,218.45,7.90655083]
[1734301395087,20.0,218.51,218.4,15.26]
[1734301395313,20.0,218.52,218.4,15.26]
[1734301395515,20.0,218.51,218.4,15.26]
[1734301396347,20.0,218.49,218.4,15.26]
[1734301396618,20.0,218.49,218.41,7.90655083]
[1734301396806,6.8646,218.52,218.4,15.94659845]
[1734301396807,6.8646,218.52,218.44,7.90655083]
[1734301397693,1.5331,218.53,218.44,7.90655083]
[1734301397694,20.0,218.51,218.44,7.90655083]
[1734301397891,1.5331,218.53,218.43,7.90655083]
[1734301398615,20.0,218.5,218.4,15.26]
[1734301399124,20.0,218.5,218.38,7.90655083]
[1734301399702,26.8651,218.5,218.35,0.68653546]
[1734301399904,26.8651,218.5,218.38,7.90655083]
[1734301401616,26.8651,218.5,218.35,0.68653546]
[1734301401812,26.8651,218.5,218.38,7.90655083]
[1734301402527,26.8651,218.5,218.34,7.9309]
[1734301402528,6.8656,218.48,218.34,7.9309]
[1734301402840,6.8656,218.48,218.35,7.90655083]
[1734301403138,1.5249,218.47,218.35,7.90655083]
[1734301403540,1.5249,218.47,218.36,7.90655083]
[1734301403905,1.5249,218.47,218.33,15.33934399]
[1734301403906,1.5249,218.47,218.35,7.90655083]
[1734301404122,6.8662,218.46,218.35,7.90655083]
[1734301404324,1.5249,218.47,218.36,8.5933426]
[1734301404540,1.5249,218.47,218.36,7.90655083]
[1734301405408,6.8662,218.46,218.35,7.90655083]
[1734301406217,6.8662,218.46,218.33,14.65258431]
[1734301406430,6.8662,218.46,218.35,7.90655083]
[1734301407962,6.8662,218.46,218.37,7.90655083]
[1734301408119,1.5249,218.47,218.4,7.90655083]
[1734301409155,1.5249,218.47,218.36,20.25098]
[1734301409319,1.5249,218.47,218.38,0.12549]
[1734301409526,1.5249,218.47,218.43,7.90655083]
[1734301410011,1.5005,218.53,218.43,7.90655083]
[1734301410416,1.5005,218.53,218.44,7.90655083]
[1734301410655,1.5005,218.53,218.4,0.25098]
[1734301410817,1.5005,218.53,218.43,7.90655083]
[1734301412927,1.5005,218.53,218.44,7.90655083]
[1734301413653,1.5005,218.53,218.46,7.90655083]
[1734301414928,1.5005,218.53,218.47,8.59294563]
[1734301415142,1.5005,218.53,218.48,7.90655083]
[1734301415340,6.3016,218.59,218.43,20.0]
[1734301415341,7.8903,218.59,218.51,7.90655083]
[1734301417442,1.5887,218.59,218.54,7.90655083]
[1734301419194,0.5405967,218.61,218.54,7.90655083]
[1734301419195,18.14028142,218.68,218.54,7.90655083]
[1734301419380,18.14028142,218.68,218.48,0.68621964]
[1734301419381,4.56692098,218.68,218.56,7.90655083]
[1734301420357,6.8599,218.67,218.55,7.90655083]
[1734301420556,8.66638054,218.71,218.58,7.90655083]
[1734301420757,23.776884,218.7,218.58,7.90655083]
[1734301421272,8.66638054,218.71,218.58,7.90655083]
[1734301422270,1.6553,218.7,218.57,7.90655083]
[1734301422862,1.6553,218.7,218.58,7.90655083]
[1734301424662,1.6553,218.7,218.59,8.59259636]
[1734301424862,1.6553,218.7,218.59,7.90655083]
[1734301425070,1.6553,218.7,218.58,7.90655083]
[1734301428063,1.6553,218.7,218.59,7.90655083]
[1734301431165,1.6553,218.7,218.6,7.90655083]
[1734301431418,1.6553,218.7,218.61,7.90655083]
[1734301433094,1.6553,218.7,218.62,7.90655083]
[1734301435387,1.6553,218.7,218.58,0.68597747]
[1734301435590,1.6553,218.7,218.61,7.90655083]
[1734301439122,1.6553,218.7,218.6,7.90655083]
[1734301440623,6.859,218.69,218.55,0.68598517]
[1734301440830,6.859,218.69,218.55,7.90655083]
[1734301440991,6.859,218.69,218.54,7.90655083]
[1734301441643,7.0427186,218.69,218.54,7.90655083]
[1734301442336,7.0427186,218.69,218.53,0.68612094]
[1734301442661,7.0427186,218.69,218.55,7.90655083]
[1734301443558,7.0427186,218.69,218.56,7.90655083]
[1734301444122,7.0427186,218.69,218.57,7.90655083]
[1734301445967,7.0427186,218.69,218.56,7.90655083]
[1734301447440,23.902374,218.68,218.51,7.23095934]
[1734301447637,23.902374,218.68,218.54,7.90655083]
[1734301448444,23.902374,218.68,218.55,7.90655083]
[1734301448637,23.776884,218.66,218.55,7.90655083]
[1734301450789,6.8602,218.65,218.55,7.90655083]
[1734301452264,0.1837186,218.69,218.64,7.90655083]
[1734301452482,0.1837186,218.69,218.67,7.90655083]
[1734301452682,0.1837186,218.69,218.66,20.0]
[1734301452876,0.1837186,218.69,218.68,7.90655083]
[1734301453192,0.1837186,218.69,218.68,20.0]
[1734301453393,0.1837186,218.69,218.68,20.81121346]
[1734301453805,0.1837186,218.69,218.68,24.71358746]
[1734301453958,1.6487,218.85,218.71,20.0]
[1734301454158,1.6487,218.85,218.71,20.68559435]
[1734301454473,1.6487,218.85,218.76,7.90655083]
[1734301455096,1.6487,218.85,218.75,7.90655083]
[1734301455300,1.6487,218.85,218.77,7.90655083]
[1734301455893,1.6487,218.85,218.79,7.90655083]
[1734301456279,3.182,218.88,218.79,7.90655083]
[1734301456702,1.5779,218.9,218.79,7.90655083]
[1734301456896,0.5478344,218.91,218.8,7.90655083]
[1734301457104,0.5478344,218.91,218.81,7.90655083]
[1734301457300,0.5478344,218.91,218.74,0.12549]
[1734301457301,0.5478344,218.91,218.82,7.90655083]
[1734301457495,0.5478344,218.91,218.78,0.12549]
[1734301457718,0.5478344,218.91,218.81,7.90655083]
[1734301458120,0.5478344,218.91,218.73,1.5413]
[1734301458533,20.0,218.9,218.73,1.5413]
[1734301458706,20.0,218.89,218.74,7.90655083]
[1734301458905,20.0,218.89,218.73,1.5413]
[1734301459092,20.0,218.89,218.74,7.90655083]
[1734301459292,20.0,218.85,218.74,7.90655083]
[1734301459491,23.776884,218.84,218.75,7.90655083]
[1734301459904,23.776884,218.84,218.74,7.90655083]
[1734301460639,23.776884,218.84,218.75,7.90655083]
[1734301460934,23.776884,218.84,218.73,1.5413]
[1734301461104,23.776884,218.85,218.74,7.90655083]
[1734301462934,23.776884,218.85,218.75,7.90655083]
[1734301468045,23.776884,218.85,218.76,7.90655083]
[1734301469753,23.776884,218.85,218.72,7.90655083]
[1734301470325,23.776884,218.85,218.68,0.6856421]
[1734301470326,23.776884,218.85,218.73,7.90655083]
[1734301471724,23.776884,218.85,218.75,7.90655083]
[1734301471914,23.776884,218.85,218.74,7.90655083]
[1734301472230,23.776884,218.85,218.7,20.68561883]
[1734301472231,23.776884,218.85,218.73,7.90655083]
[1734301473518,23.776884,218.85,218.74,7.90655083]
[1734301473715,23.776884,218.85,218.75,7.90655083]
[1734301474230,23.776884,218.85,218.74,7.90655083]
[1734301474542,23.776884,218.85,218.75,7.90655083]
[1734301476843,23.776884,218.85,218.74,7.90655083]
[1734301479273,23.776884,218.85,218.73,7.90655083]
[1734301480263,23.776884,218.85,218.74,7.90655083]
[1734301483663,23.776884,218.85,218.7,20.68561883]
[1734301483861,23.776884,218.85,218.74,7.90655083]
[1734301485490,4.7622,218.86,218.78,7.90655083]
[1734301485703,4.7622,218.86,218.77,7.90655083]
[1734301486569,23.776884,218.85,218.72,6.9592587]
[1734301486770,23.776884,218.85,218.75,7.90655083]
[1734301488462,4.7622,218.86,218.77,7.90655083]
[1734301488664,23.776884,218.85,218.77,7.90655083]
[1734301488871,23.776884,218.85,218.76,7.90655083]
[1734301489390,23.776884,218.85,218.73,0.68561439]
[1734301489594,23.776884,218.85,218.73,7.90655083]
[1734301489891,23.776884,218.85,218.74,7.90655083]
[1734301490889,23.776884,218.85,218.73,7.90655083]
[1734301495606,23.776884,218.83,218.68,0.68563674]
[1734301495773,23.776884,218.83,218.7,7.90655083]
[1734301496612,23.776884,218.83,218.69,7.90655083]
[1734301497494,20.0,218.81,218.69,7.90655083]
[1734301497676,23.776884,218.8,218.69,7.90655083]
[1734301498108,23.776884,218.81,218.69,7.90655083]
[1734301498366,23.776884,218.81,218.73,7.90655083]
[1734301498508,6.8549,218.82,218.69,0.25098]
[1734301498832,6.8549,218.82,218.74,7.90655083]
[1734301499748,4.7622,218.86,218.74,7.90655083]
[1734301499749,23.776884,218.85,218.74,7.90655083]
[1734301499922,23.776884,218.85,218.73,7.90655083]
[1734301500432,23.776884,218.85,218.74,7.90655083]
[1734301500944,11.6161,218.86,218.67,6.2106]
[1734301500945,23.776884,218.83,218.67,6.2106]
[1734301501145,23.776884,218.83,218.72,7.90655083]
[1734301501433,23.776884,218.83,218.73,7.90655083]
[1734301502144,23.776884,218.83,218.72,7.90655083]
[1734301502653,23.776884,218.83,218.7,20.0]
[1734301502821,6.8549,218.82,218.71,7.90655083]
[1734301503540,6.8549,218.82,218.73,7.90655083]
[1734301503954,23.776884,218.81,218.67,6.89634152]
[1734301504124,23.776884,218.81,218.7,7.90655083]
[1734301506344,6.8549,218.82,218.72,7.90655083]
[1734301506549,6.8549,218.82,218.7,0.68571345]
[1734301506550,6.8549,218.82,218.73,7.90655083]
[1734301508047,11.88272329,218.86,218.7,0.68571345]
[1734301508048,18.73642329,218.86,218.75,7.90655083]
[1734301509174,1.5802,218.86,218.78,7.90655083]
[1734301509358,1.5802,218.86,218.79,7.90655083]
[1734301511139,1.5802,218.86,218.8,1.82772163]
[1734301511335,1.5802,218.86,218.79,7.90655083]
[1734301512521,1.5802,218.86,218.78,7.90655083]
[1734301512828,1.5802,218.86,218.79,1.82772187]
[1734301513047,1.5802,218.86,218.78,7.90655083]
[1734301514121,1.5802,218.86,218.76,0.25098]
[1734301514327,1.5802,218.86,218.78,7.90655083]
[1734301515253,7.12052329,218.89,218.8,7.90655083]
[1734301515457,6.8525,218.9,218.8,7.90655083]
[1734301515926,2.1841344,218.91,218.8,7.90655083]
[1734301516126,2.1841344,218.91,218.81,7.90655083]
[1734301517032,2.1841344,218.91,218.82,7.90655083]
[1734301518740,2.1841344,218.91,218.81,7.90655083]
[1734301523948,2.1841344,218.91,218.8,7.90655083]
[1734301528450,2.1841344,218.91,218.8,0.25098]
[1734301528871,2.1841344,218.91,218.83,7.90655083]
[1734301530179,2.1841344,218.91,218.84,7.90655083]
[1734301531568,2.1841344,218.91,218.83,8.15753083]
[1734301531773,2.1841344,218.91,218.83,0.25098]
[1734301532560,2.1841344,218.91,218.83,7.90655083]
[1734301533856,2.1841344,218.91,218.84,7.90655083]
[1734301536093,0.5478344,218.91,218.85,7.90655083]
[1734301541463,0.5478344,218.91,218.83,0.12549]
[1734301541702,0.5478344,218.91,218.85,7.90655083]
[1734301544207,0.5478344,218.91,218.84,0.12549]
[1734301544406,0.5478344,218.91,218.84,8.03204083]
[1734301544703,0.5478344,218.91,218.85,0.12549]
[1734301545500,0.5478344,218.91,218.85,8.03204083]
[1734301550705,0.5478344,218.91,218.8,0.68518146]
[1734301550906,0.5478344,218.91,218.82,7.90655083]
[1734301551595,0.5478344,218.91,218.8,7.90655083]
[1734301552198,0.5478344,218.91,218.81,7.90655083]
[1734301552401,0.5478344,218.91,218.82,7.90655083]
[1734301552707,0.5478344,218.91,218.83,7.90655083]
[1734301553406,0.5478344,218.91,218.82,7.90655083]
[1734301553788,0.5478344,218.91,218.81,7.90655083]
[1734301554683,0.5478344,218.91,218.84,7.90655083]
[1734301555010,0.5478344,218.91,218.86,7.90655083]
[1734301555301,0.5478344,218.91,218.85,7.90655083]
[1734301556582,0.5478344,218.91,218.84,7.90655083]
[1734301557481,0.5478344,218.91,218.83,0.25098]
[1734301557482,0.5478344,218.91,218.85,7.90655083]
[1734301561091,0.5478344,218.91,218.83,0.25098]
[1734301561291,0.5478344,218.91,218.85,7.90655083]
[1734301562209,0.5478344,218.91,218.84,7.90655083]
[1734301563886,0.5478344,218.91,218.8,23.776884]
[1734301564216,0.5478344,218.91,218.78,6.65260396]
[1734301564411,0.5478344,218.91,218.8,7.90655083]
[1734301565397,0.5478344,218.91,218.81,7.90655083]
[1734301566110,0.5478344,218.91,218.82,7.90655083]
[1734301566496,0.5478344,218.91,218.83,7.90655083]
[1734301566702,0.5478344,218.91,218.82,7.90655083]
[1734301568211,0.5478344,218.91,218.79,0.93634435]
[1734301568212,0.5478344,218.91,218.83,7.90655083]
[1734301568398,0.5478344,218.91,218.79,0.93634435]
[1734301568723,0.5478344,218.91,218.82,7.90655083]
[1734301568889,0.5478344,218.91,218.79,0.93634435]
[1734301569093,0.5478344,218.91,218.8,7.90655083]
[1734301569927,1.5909,218.9,218.8,7.90655083]
[1734301570213,1.5909,218.9,218.79,7.90655083]
[1734301570386,1.5909,218.9,218.77,0.25098]
[1734301570587,1.5909,218.9,218.79,7.90655083]
[1734301570805,1.5909,218.9,218.81,7.90655083]
[1734301571209,1.5909,218.9,218.77,0.25098]
[1734301571398,1.5909,218.9,218.81,7.90655083]
[1734301571604,1.5909,218.9,218.77,0.25098]
[1734301572114,1.5909,218.9,218.8,7.90655083]
[1734301573045,21.5909,218.9,218.8,7.90655083]
[1734301573196,1.5909,218.9,218.8,7.90655083]
[1734301574641,3.182,218.89,218.74,1.6047]
[1734301574807,20.0,218.87,218.71,6.83970341]
[1734301575121,20.0,218.84,218.71,6.1542]
[1734301575323,20.0,218.84,218.72,7.90655083]
[1734301575525,20.0,218.84,218.73,7.90655083]
[1734301575897,20.0,218.84,218.71,7.90655083]
[1734301575898,20.0,218.83,218.71,7.90655083]
[1734301576093,20.0,218.83,218.66,11.4328]
[1734301576094,23.182,218.82,218.67,0.68570434]
[1734301576298,23.182,218.82,218.69,7.90655083]
[1734301576299,20.0,218.8,218.69,7.90655083]
[1734301579417,20.0,218.8,218.65,6.7612473]
[1734301579418,1.5857,218.79,218.65,6.7612473]
[1734301579633,1.5857,218.79,218.68,7.90655083]
[1734301579938,1.5857,218.79,218.66,7.90655083]
[1734301580109,21.5857,218.79,218.66,7.90655083]
[1734301580305,20.0,218.77,218.66,7.90655083]
[1734301580714,20.0,218.77,218.63,0.68581963]
[1734301581037,1.5857,218.79,218.63,0.68581963]
[1734301581038,20.0,218.76,218.63,7.90655083]
[1734301581211,24.7677,218.75,218.59,2.31963492]
[1734301581412,20.0,218.72,218.6,7.90655083]
[1734301581840,20.0,218.71,218.6,7.90655083]
[1734301583432,6.8586,218.71,218.58,7.90655083]
[1734301584311,20.0,218.68,218.58,7.90655083]
[1734301584535,20.0,218.68,218.56,0.12549]
[1734301584740,20.0,218.68,218.57,7.90655083]
[1734301584953,20.0,218.68,218.55,24.027864]
[1734301585122,20.0,218.68,218.57,7.90655083]